[Event "Early-Titled-Tuesday-Blitz-October-10-2023"]
[Site "Chess.com"]
[Date "2023.10.10"]
[Round "9"]
[White "combidharma"]
[Black "ContrVersia"]
[Result "0-1"]
[WhiteElo "2663"]
[BlackElo "2881"]
[TimeControl "180+1"]
[EndTime "9:40:55 PDT"]
[Termination "ContrVersia won by resignation"]

1. d4 {[%clk 0:02:55.9]} 1... Nf6 {[%clk 0:02:59.9]} 2. Bf4 {[%clk 0:02:55.5]}
2... e6 {[%clk 0:02:59]} 3. e3 {[%clk 0:02:55.7]} 3... c5 {[%clk 0:02:59.2]} 4.
c3 {[%clk 0:02:55.1]} 4... Be7 {[%clk 0:02:59.2]} 5. Nf3 {[%clk 0:02:55.6]} 5...
O-O {[%clk 0:02:59.1]} 6. Nbd2 {[%clk 0:02:56.3]} 6... b6 {[%clk 0:02:59.5]} 7.
Bd3 {[%clk 0:02:56.7]} 7... Ba6 {[%clk 0:02:58.4]} 8. Qe2 {[%clk 0:02:51.6]}
8... Bxd3 {[%clk 0:02:58]} 9. Qxd3 {[%clk 0:02:52.5]} 9... cxd4 {[%clk
0:02:58.6]} 10. exd4 {[%clk 0:02:52.5]} 10... d6 {[%clk 0:02:59]} 11. O-O-O
{[%clk 0:02:51]} 11... Nbd7 {[%clk 0:02:58.3]} 12. h4 {[%clk 0:02:51.2]} 12...
Ng4 {[%clk 0:02:48.2]} 13. Bg3 {[%clk 0:02:45]} 13... a6 {[%clk 0:02:46.2]} 14.
h5 {[%clk 0:02:31.6]} 14... h6 {[%clk 0:02:41.3]} 15. Qe4 {[%clk 0:01:54.2]}
15... Ndf6 {[%clk 0:02:39]} 16. Qe2 {[%clk 0:01:54.7]} 16... Nd5 {[%clk
0:02:21.2]} 17. Ne1 {[%clk 0:01:49.8]} 17... Ngf6 {[%clk 0:02:18]} 18. Nd3
{[%clk 0:01:48.8]} 18... b5 {[%clk 0:02:17.8]} 19. Bh4 {[%clk 0:01:38.3]} 19...
Qa5 {[%clk 0:02:16.9]} 20. Kb1 {[%clk 0:01:37.3]} 20... Qxc3 {[%clk 0:02:13.9]}
21. Bxf6 {[%clk 0:01:35.9]} 21... Bxf6 {[%clk 0:02:13.5]} 22. Ne4 {[%clk
0:01:34.2]} 22... Qxd4 {[%clk 0:02:08.1]} 23. Ndc5 {[%clk 0:01:34.1]} 23...
Qxb2+ {[%clk 0:01:58.1]} 24. Qxb2 {[%clk 0:01:32.4]} 24... Bxb2 {[%clk 0:01:59]}
25. Nd7 {[%clk 0:01:29.8]} 25... Rfd8 {[%clk 0:01:55.1]} 26. Rxd5 {[%clk
0:01:11.6]} 26... exd5 {[%clk 0:01:53.6]} 27. Nb6 {[%clk 0:01:12.5]} 27... dxe4
{[%clk 0:01:50.7]} 28. Nxa8 {[%clk 0:01:12.2]} 28... Bd4 {[%clk 0:01:50.9]} 0-1

[Event "Early-Titled-Tuesday-Blitz-October-10-2023"]
[Site "Chess.com"]
[Date "2023.10.10"]
[Round "9"]
[White "NovikovaGalina"]
[Black "Larina_Maria"]
[Result "1-0"]
[WhiteElo "2419"]
[BlackElo "2198"]
[TimeControl "180+1"]
[EndTime "9:41:02 PDT"]
[Termination "NovikovaGalina won by resignation"]

1. e4 {[%clk 0:03:00.9]} 1... c6 {[%clk 0:03:00.4]} 2. d4 {[%clk 0:03:00.4]}
2... d5 {[%clk 0:03:00.6]} 3. e5 {[%clk 0:03:01]} 3... Bf5 {[%clk 0:03:00.4]} 4.
Nc3 {[%clk 0:03:01]} 4... e6 {[%clk 0:02:58.9]} 5. g4 {[%clk 0:03:01.5]} 5...
Bg6 {[%clk 0:02:58.8]} 6. Nge2 {[%clk 0:03:02.2]} 6... h6 {[%clk 0:02:40.1]} 7.
h4 {[%clk 0:02:59.9]} 7... c5 {[%clk 0:02:38.1]} 8. Nf4 {[%clk 0:03:00.1]} 8...
Bh7 {[%clk 0:02:37.3]} 9. Be3 {[%clk 0:03:00.6]} 9... cxd4 {[%clk 0:02:31.8]}
10. Bxd4 {[%clk 0:03:00.3]} 10... Nc6 {[%clk 0:02:32.2]} 11. Bd3 {[%clk
0:02:49.4]} 11... Bxd3 {[%clk 0:02:31.1]} 12. Qxd3 {[%clk 0:02:50]} 12... a6
{[%clk 0:02:30.1]} 13. O-O-O {[%clk 0:02:48.5]} 13... Rc8 {[%clk 0:02:24.7]} 14.
Rhe1 {[%clk 0:02:43.9]} 14... Nxd4 {[%clk 0:02:13.4]} 15. Qxd4 {[%clk
0:02:43.9]} 15... Bc5 {[%clk 0:02:12.9]} 16. Qd3 {[%clk 0:02:43.9]} 16... Bxf2
{[%clk 0:02:06.4]} 17. Rf1 {[%clk 0:02:31.8]} 17... Bxh4 {[%clk 0:02:06.1]} 18.
Nfxd5 {[%clk 0:02:30.7]} 18... exd5 {[%clk 0:01:52.8]} 19. e6 {[%clk 0:02:11]}
19... Nf6 {[%clk 0:01:47.2]} 20. exf7+ {[%clk 0:02:09.8]} 20... Kxf7 {[%clk
0:01:48.1]} 21. Nxd5 {[%clk 0:02:05.2]} 21... Rf8 {[%clk 0:01:35]} 22. Qb3
{[%clk 0:02:02.1]} 22... Kg6 {[%clk 0:01:10.9]} 23. Nf4+ {[%clk 0:02:01.2]}
23... Kh7 {[%clk 0:01:04.9]} 24. Rxd8 {[%clk 0:02:01.7]} 24... Rcxd8 {[%clk
0:01:05.3]} 25. Ne6 {[%clk 0:01:59.8]} 25... Ne4 {[%clk 0:01:00.9]} 26. Nxf8+
{[%clk 0:01:58.3]} 26... Kh8 {[%clk 0:00:58.2]} 27. Ng6+ {[%clk 0:01:58]} 27...
Kh7 {[%clk 0:00:58.1]} 28. Nxh4 {[%clk 0:01:55.5]} 1-0

[Event "Early-Titled-Tuesday-Blitz-October-10-2023"]
[Site "Chess.com"]
[Date "2023.10.10"]
[Round "9"]
[White "Eagle_2019"]
[Black "Herman-NY"]
[Result "1-0"]
[WhiteElo "2732"]
[BlackElo "2545"]
[TimeControl "180+1"]
[EndTime "9:42:03 PDT"]
[Termination "Eagle_2019 won by resignation"]

1. d4 {[%clk 0:03:00.9]} 1... Nf6 {[%clk 0:03:00.1]} 2. Nf3 {[%clk 0:02:55.7]}
2... g6 {[%clk 0:03:00.3]} 3. g3 {[%clk 0:02:55.8]} 3... Bg7 {[%clk 0:03:00.8]}
4. Bg2 {[%clk 0:02:56.2]} 4... O-O {[%clk 0:03:01.5]} 5. O-O {[%clk 0:02:56.7]}
5... d6 {[%clk 0:03:01.6]} 6. c4 {[%clk 0:02:56.7]} 6... c5 {[%clk 0:03:01.9]}
7. Nc3 {[%clk 0:02:54.1]} 7... Nc6 {[%clk 0:03:02.3]} 8. dxc5 {[%clk 0:02:54.1]}
8... dxc5 {[%clk 0:03:03.2]} 9. Bf4 {[%clk 0:02:54.4]} 9... Nh5 {[%clk
0:03:01.1]} 10. Be3 {[%clk 0:02:52.9]} 10... b6 {[%clk 0:03:01.7]} 11. Qc1
{[%clk 0:02:42.5]} 11... Bb7 {[%clk 0:02:37.8]} 12. Rd1 {[%clk 0:02:41.7]} 12...
Qc8 {[%clk 0:02:37.3]} 13. Bh6 {[%clk 0:02:36.2]} 13... Qe6 {[%clk 0:02:00.2]}
14. Bxg7 {[%clk 0:02:31.3]} 14... Kxg7 {[%clk 0:01:41.3]} 15. Nd5 {[%clk
0:02:24.5]} 15... Rad8 {[%clk 0:01:35.2]} 16. Qc3+ {[%clk 0:02:21.9]} 16... Nf6
{[%clk 0:01:12.3]} 17. Ng5 {[%clk 0:01:48.6]} 17... Qc8 {[%clk 0:00:59.5]} 18.
e3 {[%clk 0:01:23.9]} 18... e5 {[%clk 0:00:10.9]} 19. Nxf6 {[%clk 0:01:21.1]}
19... Kxf6 {[%clk 0:00:11.4]} 20. Nxh7+ {[%clk 0:01:21.1]} 20... Kg7 {[%clk
0:00:11.8]} 21. Nxf8 {[%clk 0:01:21.1]} 1-0

[Event "Early-Titled-Tuesday-Blitz-October-10-2023"]
[Site "Chess.com"]
[Date "2023.10.10"]
[Round "9"]
[White "Vision_64"]
[Black "LUISMIGUELOV"]
[Result "0-1"]
[WhiteElo "2320"]
[BlackElo "2160"]
[TimeControl "180+1"]
[EndTime "9:42:32 PDT"]
[Termination "LUISMIGUELOV won by checkmate"]

1. e4 {[%clk 0:02:55.3]} 1... c6 {[%clk 0:02:59.4]} 2. d4 {[%clk 0:02:54.8]}
2... d5 {[%clk 0:02:59.8]} 3. exd5 {[%clk 0:02:53.7]} 3... cxd5 {[%clk
0:02:59.4]} 4. Bd3 {[%clk 0:02:53.9]} 4... Nc6 {[%clk 0:02:59.5]} 5. c3 {[%clk
0:02:54.1]} 5... Qc7 {[%clk 0:02:58.3]} 6. Ne2 {[%clk 0:02:48.6]} 6... Bg4
{[%clk 0:02:57.7]} 7. O-O {[%clk 0:02:26.6]} 7... Bxe2 {[%clk 0:02:56.4]} 8.
Qxe2 {[%clk 0:02:22.6]} 8... e6 {[%clk 0:02:56.6]} 9. f4 {[%clk 0:02:18.8]} 9...
g6 {[%clk 0:02:53.3]} 10. f5 {[%clk 0:02:18.5]} 10... gxf5 {[%clk 0:02:49.5]}
11. Bxf5 {[%clk 0:02:17.6]} 11... O-O-O {[%clk 0:02:45.4]} 12. Bd3 {[%clk
0:02:01]} 12... Bd6 {[%clk 0:02:39]} 13. Qh5 {[%clk 0:01:52]} 13... Rd7 {[%clk
0:02:27.1]} 14. Nd2 {[%clk 0:01:47.9]} 14... Nd8 {[%clk 0:01:57.6]} 15. Nf3
{[%clk 0:01:42.3]} 15... Ne7 {[%clk 0:01:54.7]} 16. Ne5 {[%clk 0:01:35.5]} 16...
Bxe5 {[%clk 0:01:52.3]} 17. dxe5 {[%clk 0:01:35.5]} 17... Ng6 {[%clk 0:01:48.6]}
18. Re1 {[%clk 0:01:04.9]} 18... Nc6 {[%clk 0:01:42.3]} 19. Bxg6 {[%clk
0:00:51.8]} 19... fxg6 {[%clk 0:01:40.7]} 20. Qg5 {[%clk 0:00:50.5]} 20... Rf8
{[%clk 0:01:35.6]} 21. Bf4 {[%clk 0:00:42.4]} 21... Rf5 {[%clk 0:01:33]} 22. Qg3
{[%clk 0:00:42.4]} 22... Rdf7 {[%clk 0:01:31.6]} 23. Rf1 {[%clk 0:00:36.6]}
23... Qb6+ {[%clk 0:01:16.3]} 24. Kh1 {[%clk 0:00:35.8]} 24... Qxb2 {[%clk
0:01:15.3]} 25. a4 {[%clk 0:00:20.9]} 25... Rxf4 {[%clk 0:01:09.3]} 26. Rfb1
{[%clk 0:00:18.6]} 26... Qxb1+ {[%clk 0:01:04.6]} 27. Rxb1 {[%clk 0:00:18.6]}
27... Rf1+ {[%clk 0:01:04.9]} 28. Rxf1 {[%clk 0:00:17.7]} 28... Rxf1# {[%clk
0:01:04.2]} 0-1

[Event "Early-Titled-Tuesday-Blitz-October-10-2023"]
[Site "Chess.com"]
[Date "2023.10.10"]
[Round "9"]
[White "Zurability"]
[Black "WindWhistler11"]
[Result "1-0"]
[WhiteElo "2722"]
[BlackElo "2488"]
[TimeControl "180+1"]
[EndTime "9:42:34 PDT"]
[Termination "Zurability won on time"]

1. b4 {[%clk 0:02:59.8]} 1... d6 {[%clk 0:02:55.3]} 2. Bb2 {[%clk 0:02:59.7]}
2... Nd7 {[%clk 0:02:56]} 3. c4 {[%clk 0:02:59.5]} 3... e5 {[%clk 0:02:56.1]} 4.
e3 {[%clk 0:02:51.3]} 4... g6 {[%clk 0:02:56.1]} 5. d4 {[%clk 0:02:51.2]} 5...
Bg7 {[%clk 0:02:56.8]} 6. Nf3 {[%clk 0:02:49.8]} 6... Ne7 {[%clk 0:02:54.9]} 7.
Nc3 {[%clk 0:02:36.4]} 7... O-O {[%clk 0:02:54.9]} 8. Be2 {[%clk 0:02:35.7]}
8... h6 {[%clk 0:02:53.4]} 9. O-O {[%clk 0:02:35.8]} 9... f5 {[%clk 0:02:30.4]}
10. dxe5 {[%clk 0:02:35.7]} 10... dxe5 {[%clk 0:02:28.4]} 11. c5 {[%clk
0:02:35.8]} 11... Kh7 {[%clk 0:02:17.7]} 12. Bc4 {[%clk 0:02:33.4]} 12... a6
{[%clk 0:01:58.2]} 13. e4 {[%clk 0:02:23.7]} 13... Qe8 {[%clk 0:01:37.8]} 14.
Re1 {[%clk 0:02:08.3]} 14... f4 {[%clk 0:01:35.9]} 15. Nd5 {[%clk 0:02:04.6]}
15... Qd8 {[%clk 0:01:33.5]} 16. Qd2 {[%clk 0:01:57.4]} 16... g5 {[%clk
0:00:58.6]} 17. h3 {[%clk 0:01:57]} 17... Ng6 {[%clk 0:00:57.7]} 18. Rad1 {[%clk
0:01:56.3]} 18... h5 {[%clk 0:00:36.3]} 19. Nxc7 {[%clk 0:01:54.3]} 19... Qxc7
{[%clk 0:00:13.8]} 20. Nxg5+ {[%clk 0:01:54.3]} 20... Kh6 {[%clk 0:00:13.3]} 21.
Ne6 {[%clk 0:01:54.4]} 21... Qc6 {[%clk 0:00:11.2]} 22. Nxf8 {[%clk 0:01:54]}
22... Ndxf8 {[%clk 0:00:11]} 23. Qd6 {[%clk 0:01:45.8]} 23... f3 {[%clk
0:00:10.5]} 24. Qxc6 {[%clk 0:01:35.9]} 24... bxc6 {[%clk 0:00:10.7]} 25. Rd6
{[%clk 0:01:36.3]} 25... fxg2 {[%clk 0:00:10.3]} 26. Rxc6 {[%clk 0:01:35.8]}
26... Kh7 {[%clk 0:00:09.6]} 27. Rc7 {[%clk 0:01:30.3]} 27... Bxh3 {[%clk
0:00:07.7]} 28. f4 {[%clk 0:01:20.9]} 28... Be6 {[%clk 0:00:02.4]} 29. Bd5
{[%clk 0:01:13.8]} 1-0

[Event "Early-Titled-Tuesday-Blitz-October-10-2023"]
[Site "Chess.com"]
[Date "2023.10.10"]
[Round "9"]
[White "Alex_Sahakyan2006"]
[Black "Riku-gan"]
[Result "1/2-1/2"]
[WhiteElo "2721"]
[BlackElo "2838"]
[TimeControl "180+1"]
[EndTime "9:42:37 PDT"]
[Termination "Game drawn by repetition"]

1. d4 {[%clk 0:03:00.9]} 1... Nf6 {[%clk 0:02:56.8]} 2. Nf3 {[%clk 0:03:00.6]}
2... e6 {[%clk 0:02:57.1]} 3. Bf4 {[%clk 0:02:59.6]} 3... c5 {[%clk 0:02:56.7]}
4. e3 {[%clk 0:02:59.7]} 4... Nc6 {[%clk 0:02:56.8]} 5. Nbd2 {[%clk 0:02:57]}
5... d5 {[%clk 0:02:57.3]} 6. c3 {[%clk 0:02:56.5]} 6... Bd6 {[%clk 0:02:57.1]}
7. Bg3 {[%clk 0:02:55.6]} 7... O-O {[%clk 0:02:56.8]} 8. Bd3 {[%clk 0:02:56.2]}
8... b6 {[%clk 0:02:57]} 9. e4 {[%clk 0:02:52.9]} 9... Nh5 {[%clk 0:02:55.5]}
10. e5 {[%clk 0:02:38.7]} 10... Be7 {[%clk 0:02:54.8]} 11. Qe2 {[%clk
0:02:36.5]} 11... g6 {[%clk 0:02:51.6]} 12. Nf1 {[%clk 0:02:22.8]} 12... cxd4
{[%clk 0:02:51.5]} 13. cxd4 {[%clk 0:02:22]} 13... Nb4 {[%clk 0:02:51.4]} 14.
N1d2 {[%clk 0:02:18.3]} 14... a5 {[%clk 0:02:49.1]} 15. O-O {[%clk 0:01:41]}
15... Nxd3 {[%clk 0:02:47.4]} 16. Qxd3 {[%clk 0:01:41.9]} 16... Ba6 {[%clk
0:02:48.1]} 17. Qe3 {[%clk 0:01:42.8]} 17... Bxf1 {[%clk 0:02:47.5]} 18. Nxf1
{[%clk 0:01:41.9]} 18... Ng7 {[%clk 0:02:48.4]} 19. Bf4 {[%clk 0:01:40.1]} 19...
Nf5 {[%clk 0:02:48.3]} 20. Qd3 {[%clk 0:01:38.8]} 20... h5 {[%clk 0:02:47.2]}
21. h3 {[%clk 0:01:35.9]} 21... h4 {[%clk 0:02:41.6]} 22. N1h2 {[%clk 0:01:34]}
22... f6 {[%clk 0:02:26.7]} 23. exf6 {[%clk 0:01:32.6]} 23... Bxf6 {[%clk
0:02:26.7]} 24. Ng4 {[%clk 0:01:31.8]} 24... Kg7 {[%clk 0:02:25.9]} 25. Nxf6
{[%clk 0:01:30.3]} 25... Rxf6 {[%clk 0:02:25.1]} 26. Be5 {[%clk 0:01:30.6]}
26... Kg8 {[%clk 0:02:23.3]} 27. Bxf6 {[%clk 0:01:25.1]} 27... Qxf6 {[%clk
0:02:24.2]} 28. Rc1 {[%clk 0:01:22.3]} 28... Nd6 {[%clk 0:02:03.2]} 29. Rc6
{[%clk 0:01:16.2]} 29... Ne4 {[%clk 0:01:59]} 30. Qe3 {[%clk 0:01:11.9]} 30...
Rf8 {[%clk 0:01:49.6]} 31. Rc7 {[%clk 0:01:08.6]} 31... g5 {[%clk 0:01:39.7]}
32. Qc1 {[%clk 0:00:57.6]} 32... b5 {[%clk 0:01:34]} 33. Rc8 {[%clk 0:00:56.7]}
33... a4 {[%clk 0:01:31.6]} 34. Rxf8+ {[%clk 0:00:53.6]} 34... Qxf8 {[%clk
0:01:32.5]} 35. Qc6 {[%clk 0:00:51.6]} 35... Qf7 {[%clk 0:01:21.3]} 36. Qxb5
{[%clk 0:00:50.5]} 36... Qc7 {[%clk 0:01:20.7]} 37. Qe8+ {[%clk 0:00:49.4]}
37... Kg7 {[%clk 0:01:19.1]} 38. Qxe6 {[%clk 0:00:49.2]} 38... Qc1+ {[%clk
0:01:17.7]} 39. Kh2 {[%clk 0:00:49]} 39... Qf4+ {[%clk 0:01:17.3]} 40. Kh1
{[%clk 0:00:44.5]} 40... Qc1+ {[%clk 0:01:14.5]} 41. Kh2 {[%clk 0:00:42]} 41...
Qf4+ {[%clk 0:01:14.4]} 42. Kg1 {[%clk 0:00:38.4]} 42... Qc1+ {[%clk 0:01:12.5]}
43. Kh2 {[%clk 0:00:38.7]} 1/2-1/2

[Event "Early-Titled-Tuesday-Blitz-October-10-2023"]
[Site "Chess.com"]
[Date "2023.10.10"]
[Round "9"]
[White "Agibileg"]
[Black "secretsuperstar7"]
[Result "0-1"]
[WhiteElo "2689"]
[BlackElo "2461"]
[TimeControl "180+1"]
[EndTime "9:42:39 PDT"]
[Termination "secretsuperstar7 won by checkmate"]

1. d4 {[%clk 0:02:58.5]} 1... Nf6 {[%clk 0:02:59]} 2. c4 {[%clk 0:02:56.6]} 2...
e6 {[%clk 0:02:56.1]} 3. Nc3 {[%clk 0:02:51.6]} 3... b6 {[%clk 0:02:53.7]} 4. e4
{[%clk 0:02:49.4]} 4... Bb7 {[%clk 0:02:51.3]} 5. f3 {[%clk 0:02:48.2]} 5... d5
{[%clk 0:02:48.6]} 6. cxd5 {[%clk 0:02:46.8]} 6... exd5 {[%clk 0:02:48.2]} 7. e5
{[%clk 0:02:47.2]} 7... Nfd7 {[%clk 0:02:48.2]} 8. Bb5 {[%clk 0:02:46.4]} 8...
c5 {[%clk 0:02:44.6]} 9. Nge2 {[%clk 0:02:45.2]} 9... cxd4 {[%clk 0:02:40.5]}
10. Nxd4 {[%clk 0:02:40.1]} 10... Bc5 {[%clk 0:02:39.4]} 11. f4 {[%clk
0:02:30.3]} 11... Qh4+ {[%clk 0:02:24.7]} 12. g3 {[%clk 0:02:26.7]} 12... Qh3
{[%clk 0:02:24.7]} 13. Bf1 {[%clk 0:02:05.3]} 13... Qh6 {[%clk 0:02:12.1]} 14.
f5 {[%clk 0:02:05.5]} 14... g5 {[%clk 0:02:03.7]} 15. e6 {[%clk 0:02:05.3]}
15... Ne5 {[%clk 0:01:52.7]} 16. h4 {[%clk 0:01:48.1]} 16... Bxd4 {[%clk
0:01:50.6]} 17. Bxg5 {[%clk 0:01:40.2]} 17... Qg7 {[%clk 0:01:17]} 18. Bb5+
{[%clk 0:01:37.1]} 18... Nbc6 {[%clk 0:01:12.6]} 19. Nxd5 {[%clk 0:01:34.6]}
19... O-O {[%clk 0:00:54.6]} 20. e7 {[%clk 0:01:20.7]} 20... Rfc8 {[%clk
0:00:41.5]} 21. Nf6+ {[%clk 0:01:19.8]} 21... Kh8 {[%clk 0:00:41.2]} 22. Nh5
{[%clk 0:01:19.5]} 22... Nf3+ {[%clk 0:00:30.8]} 23. Qxf3 {[%clk 0:01:19.8]}
23... Qe5+ {[%clk 0:00:30.8]} 24. Kf1 {[%clk 0:01:20.2]} 24... Qxb5+ {[%clk
0:00:27.6]} 25. Qe2 {[%clk 0:01:10.9]} 25... Qxf5+ {[%clk 0:00:15.2]} 26. Kg2
{[%clk 0:01:09.8]} 26... Ne5+ {[%clk 0:00:14.7]} 27. Kh2 {[%clk 0:01:06.1]}
27... Nf3+ {[%clk 0:00:14.5]} 28. Kg2 {[%clk 0:01:02.6]} 28... Ng1+ {[%clk
0:00:14.6]} 29. Kh2 {[%clk 0:00:59.7]} 29... Qh3# {[%clk 0:00:14.5]} 0-1

[Event "Early-Titled-Tuesday-Blitz-October-10-2023"]
[Site "Chess.com"]
[Date "2023.10.10"]
[Round "9"]
[White "SmirnovAlexandrA"]
[Black "Drags95"]
[Result "0-1"]
[WhiteElo "2639"]
[BlackElo "2858"]
[TimeControl "180+1"]
[EndTime "9:42:40 PDT"]
[Termination "Drags95 won by resignation"]

1. e4 {[%clk 0:02:55.3]} 1... c5 {[%clk 0:02:59.4]} 2. Nf3 {[%clk 0:02:53.3]}
2... e6 {[%clk 0:02:59.9]} 3. d4 {[%clk 0:02:47.4]} 3... cxd4 {[%clk 0:03:00.8]}
4. Nxd4 {[%clk 0:02:48.2]} 4... Nc6 {[%clk 0:03:01.7]} 5. Nc3 {[%clk 0:02:48.4]}
5... Qc7 {[%clk 0:03:02]} 6. g3 {[%clk 0:02:47.8]} 6... a6 {[%clk 0:03:01.6]} 7.
Bg2 {[%clk 0:02:48]} 7... Nf6 {[%clk 0:03:02.2]} 8. O-O {[%clk 0:02:47.9]} 8...
Nxd4 {[%clk 0:03:02.9]} 9. Qxd4 {[%clk 0:02:47.5]} 9... Bc5 {[%clk 0:03:03.7]}
10. Qd3 {[%clk 0:02:47.9]} 10... h6 {[%clk 0:02:51.6]} 11. Bf4 {[%clk
0:02:41.9]} 11... d6 {[%clk 0:02:50]} 12. Rad1 {[%clk 0:02:34.9]} 12... e5
{[%clk 0:02:48.9]} 13. Be3 {[%clk 0:02:35.2]} 13... Be6 {[%clk 0:02:46.8]} 14.
Bxc5 {[%clk 0:02:16.3]} 14... dxc5 {[%clk 0:02:47.7]} 15. Nd5 {[%clk 0:02:16.6]}
15... Bxd5 {[%clk 0:02:48.1]} 16. exd5 {[%clk 0:02:17.5]} 16... Qd6 {[%clk
0:02:48.8]} 17. c4 {[%clk 0:02:16.8]} 17... O-O {[%clk 0:02:48.5]} 18. Rfe1
{[%clk 0:02:14.2]} 18... Rae8 {[%clk 0:02:48.3]} 19. a4 {[%clk 0:02:13.8]} 19...
Re7 {[%clk 0:02:42.6]} 20. Re2 {[%clk 0:01:43.3]} 20... g6 {[%clk 0:02:39.2]}
21. Rde1 {[%clk 0:01:33.3]} 21... Kg7 {[%clk 0:02:38.7]} 22. Qc3 {[%clk
0:01:32]} 22... Rfe8 {[%clk 0:02:35.5]} 23. Bh3 {[%clk 0:01:07]} 23... h5 {[%clk
0:02:33.5]} 24. Qe3 {[%clk 0:01:06.2]} 24... b5 {[%clk 0:02:26.5]} 25. axb5
{[%clk 0:01:04.4]} 25... axb5 {[%clk 0:02:27.4]} 26. b3 {[%clk 0:01:04.7]} 26...
Ra7 {[%clk 0:02:15.4]} 27. Qg5 {[%clk 0:00:53.7]} 27... e4 {[%clk 0:02:06.6]}
28. Bg2 {[%clk 0:00:50.1]} 28... Ra3 {[%clk 0:02:05.1]} 29. Re3 {[%clk
0:00:37.4]} 29... Ng4 {[%clk 0:01:56.1]} 30. Rxe4 {[%clk 0:00:37.2]} 30... Rxe4
{[%clk 0:01:55.6]} 31. Bxe4 {[%clk 0:00:37.1]} 31... Rxb3 {[%clk 0:01:50.7]} 32.
cxb5 {[%clk 0:00:36.8]} 32... Rxb5 {[%clk 0:01:50.3]} 33. h3 {[%clk 0:00:35.3]}
33... Nf6 {[%clk 0:01:48.8]} 34. Bf3 {[%clk 0:00:32.3]} 34... c4 {[%clk
0:01:47.8]} 35. Rc1 {[%clk 0:00:22.8]} 35... Qc5 {[%clk 0:01:42.7]} 36. Kg2
{[%clk 0:00:21]} 36... Rb2 {[%clk 0:01:39.8]} 37. Rf1 {[%clk 0:00:14.8]} 37...
c3 {[%clk 0:01:40]} 38. Qc1 {[%clk 0:00:13.6]} 38... Rd2 {[%clk 0:01:39.4]} 39.
Qe1 {[%clk 0:00:11.4]} 39... Qd4 {[%clk 0:01:37.6]} 0-1

[Event "Early-Titled-Tuesday-Blitz-October-10-2023"]
[Site "Chess.com"]
[Date "2023.10.10"]
[Round "9"]
[White "FERNANDEZL1983"]
[Black "LuisFSiles"]
[Result "1-0"]
[WhiteElo "2508"]
[BlackElo "2336"]
[TimeControl "180+1"]
[EndTime "9:42:43 PDT"]
[Termination "FERNANDEZL1983 won on time"]

1. d4 {[%clk 0:02:58.1]} 1... Nf6 {[%clk 0:02:55.3]} 2. Bf4 {[%clk 0:02:57.6]}
2... g6 {[%clk 0:02:54.9]} 3. Nc3 {[%clk 0:02:56.9]} 3... d5 {[%clk 0:02:52.6]}
4. e3 {[%clk 0:02:56]} 4... c6 {[%clk 0:02:50.8]} 5. h3 {[%clk 0:02:54.9]} 5...
Bg7 {[%clk 0:02:36.1]} 6. Nf3 {[%clk 0:02:55.1]} 6... b5 {[%clk 0:02:32]} 7. Bd3
{[%clk 0:02:40.4]} 7... Bf5 {[%clk 0:02:20]} 8. O-O {[%clk 0:02:35.2]} 8... b4
{[%clk 0:02:15]} 9. Na4 {[%clk 0:02:21.4]} 9... Nbd7 {[%clk 0:02:05.9]} 10. Ne5
{[%clk 0:02:16.4]} 10... Nxe5 {[%clk 0:01:59]} 11. Bxe5 {[%clk 0:02:17.3]} 11...
O-O {[%clk 0:01:53.4]} 12. Qf3 {[%clk 0:01:59.2]} 12... Be4 {[%clk 0:01:44.1]}
13. Qe2 {[%clk 0:01:58.4]} 13... Nd7 {[%clk 0:01:37.6]} 14. Bxg7 {[%clk
0:01:54.5]} 14... Kxg7 {[%clk 0:01:38.5]} 15. Bxe4 {[%clk 0:01:54.7]} 15... dxe4
{[%clk 0:01:38.3]} 16. Qc4 {[%clk 0:01:41]} 16... Nb6 {[%clk 0:00:59.4]} 17.
Qxb4 {[%clk 0:01:37.9]} 17... Qd6 {[%clk 0:00:38.8]} 18. Qa5 {[%clk 0:01:08.1]}
18... Rfb8 {[%clk 0:00:27.4]} 19. b3 {[%clk 0:01:06.3]} 19... Nxa4 {[%clk
0:00:19.1]} 20. Qxa4 {[%clk 0:01:07.2]} 20... Rb4 {[%clk 0:00:17]} 21. Qa5
{[%clk 0:01:03]} 21... Rb5 {[%clk 0:00:16.3]} 22. Qc3 {[%clk 0:01:02.6]} 22...
Rg5 {[%clk 0:00:14.7]} 23. d5+ {[%clk 0:00:59.6]} 23... Kg8 {[%clk 0:00:13.5]}
24. Qxc6 {[%clk 0:00:58.5]} 24... Rxd5 {[%clk 0:00:10.4]} 25. Qxa8+ {[%clk
0:00:58]} 1-0